Cogmind - Beta 13 @@@ ROGUE MODE // 2024.04.07 @ 14:57:54 Player: Cwaftwer Result: Destroyed by as-71546 with Assembled F-torch Performance ------------- Evolutions (0) 0 Regions Visited (3) 600 Robots Destroyed (25) 125 Value Destroyed (260) 260 Prototype IDs (1) 20 Alien Tech Used (0) 0 Bonus (0) 0 TOTAL SCORE: 1005 Bonus ------- None Cogmind --------- Core Integrity 0/250 Matter 428/450 Energy 87/160 System Corruption 0% Temperature Cool (20) Movement Core (250) Ox4 Location -10/Exiles Parts ------- > --- POWER (1) -------- Light Nuclear Core > --- PROPULSION (2) --- (None) > --- UTILITY (2) ------ Small Storage Unit Large Matter Pod > --- WEAPON (2) ------- (None) > --- INVENTORY (8) ---- Ion Engine Experimental Sensor Array Improved Terrain Scanner Signal Generator Peak State ------------ > --- POWER ------------ Ion Engine > --- PROPULSION ------- Wheel Wheel > --- UTILITY ---------- Small Storage Unit Experimental Sensor Array > --- WEAPON ----------- Assault Rifle Assault Rifle > --- INVENTORY -------- Ion Engine Light Nuclear Core Medium Matter Pod Sensor Array Improved Terrain Scanner Light Armor Plating [Rating: 16] Favorites ----------- Power Ion Engine Engine Ion Engine Power Core Light Nuclear Core Propulsion Wheel Wheel Wheel Hover Unit Hover Unit Flight Unit Flight Unit Utility Small Storage Unit Device Experimental Sensor Array Storage Small Storage Unit Protection Light Armor Plating Weapon Assault Rifle Ballistic Gun Assault Rifle Build | -11 -10 -10 -10 ------- Run | Yrd Mat Min Exi Slots Evolved . | . . . . Power . | . . . . Propulsion . | . . . . Utility . | . . . . Weapon . | . . . . Parts Attached 23 | 7 8 4 4 Power 2 | 1 . . 1 Engine 1 | 1 . . . Core 1 | . . . 1 Reactor . | . . . . Propulsion 11 | 2 6 2 1 Treads . | . . . . Leg . | . . . . Wheel 7 | 2 2 2 1 Hover 3 | . 3 . . Flight 1 | . 1 . . Utility 6 | 2 1 1 2 Device 3 | 1 1 1 . Storage 2 | 1 . . 1 Processor . | . . . . Hackware . | . . . . Protection 1 | . . . 1 Artifact . | . . . . Weapon 4 | 2 1 1 . Energy Gun . | . . . . Energy Cannon . | . . . . Ballistic Gun 4 | 2 1 1 . Ballistic Cannon . | . . . . Launcher . | . . . . Special Weapon . | . . . . Impact Weapon . | . . . . Slashing Weapon . | . . . . Piercing Weapon . | . . . . Special Melee Weapon . | . . . . Unidentified Prototypes 1 | . . 1 . Parts Lost 8 | . . 2 6 Power 1 | . . . 1 Propulsion 3 | . . 1 2 Utility 1 | . . . 1 Weapon 3 | . . 1 2 Highest Loss Streak 6 | . . 1 6 To Critical Strikes . | . . . . Average Slot Usage (%) 96 | . 91 99 90 Engine 13 | . 14 14 11 Wheel 25 | . 19 27 25 Hover 2 | . 8 . . Device 12 | . 10 14 11 Storage 14 | . 14 14 14 Ballistic Gun 26 | . 23 28 25 Naked Turns . | . . . . Heaviest Build 15 | 14 15 15 14 Greatest Support 20 | 20 20 20 20 Greatest Overweight (x) 4 | . . 1 4 Average Overweight (x) . | . . . . Largest Inventory Capacity 8 | 8 8 8 8 Average Capacity 7 | 7 8 8 8 Most Carried 8 | 8 8 8 7 Average Carried 6 | 5 6 6 5 Final Capacity 8 | 8 8 8 8 Final Carried 8 | 8 5 7 4 Class Distribution -------------------- 100% | Mutant Dominant Class ---------------- Mutant | -10/Materials Mutant | -10/Mines Mutant | -10/Exiles Resources | -11 -10 -10 -10 ----------- Run | Yrd Mat Min Exi Matter Collected 966 | 431 75 460 . Remotely . | . . . . Salvage Created 712 | 302 78 314 18 Parts 54 | 34 4 16 . Haulers Intercepted . | . . . . Recyclers Shooed 2 | . . 2 . Parts Field Recycled . | . . . . Retrieved Matter . | . . . . Parts Self-Destructed . | . . . . Prevented . | . . . . Kills | -11 -10 -10 -10 ------- Run | Yrd Mat Min Exi Combat Hostiles Destroyed 7 | . 1 5 1 Guns 7 | . 1 5 1 Classes Destroyed 8 | 3 2 2 1 Worker 6 | 2 1 3 . Builder 1 | . . 1 . Tunneler 9 | 9 . . . Recycler 2 | 1 . 1 . Watcher 1 | . 1 . . Swarmer 3 | . . 3 . Grunt 3 | . 1 2 . Assembled 1 | . . . 1 Best Kill Streak 5 | 5 1 3 1 Combat Bots Only 3 | . 1 3 1 Max Kills in Single Turn 2 | 2 1 1 1 Gunslinging . | . . . . Exploded . | . . . . Melee . | . . . . Uniques/NPCs Destroyed . | . . . . Combat | -11 -10 -10 -10 -------- Run | Yrd Mat Min Exi Hostile Shots Fired 104 | . 3 47 54 Missed 33 | . 1 15 17 Damage Taken 979 | . 21 394 564 Core 254 | . 11 62 181 Absorbed by Shields . | . . . . Core Remaining (%) 100 | 100 . . . Volleys Fired 77 | 17 17 37 6 Largest 2 | 2 2 2 2 Hottest 40 | 40 40 40 40 Shots Fired 137 | 34 22 73 8 Gun 137 | 34 22 73 8 Cannon . | . . . . Launcher . | . . . . Special . | . . . . Kinetic 137 | 34 22 73 8 Thermal . | . . . . Explosive . | . . . . Electromagnetic . | . . . . Robot Hit Streak 11 | 7 2 11 2 Robot Miss Streak 4 | 2 4 2 2 Penetration Max . | . . . . Secondary Targets . | . . . . Shots Hit Robots 86 | 18 9 55 4 Core Hits 39 | 13 5 18 3 Critical Kills . | . . . . Critical Parts Destroyed 1 | . . 1 . Critical Strikes 1 | . . 1 . Destroy 1 | . . 1 . Melee Attacks . | . . . . Impact . | . . . . Slashing . | . . . . Piercing . | . . . . Sneak Attacks . | . . . . Combat Hostiles . | . . . . Follow-up Attacks . | . . . . Damage Inflicted 1058 | 217 108 700 33 Guns 1058 | 217 108 700 33 Cannons . | . . . . Explosions . | . . . . Melee . | . . . . Ramming . | . . . . Kinetic 1058 | 217 108 700 33 Thermal . | . . . . Explosive . | . . . . Electromagnetic . | . . . . Impact . | . . . . Slashing . | . . . . Piercing . | . . . . Highest Corruption . | . . . . Average Corruption . | . . . . Corruption Purged . | . . . . Corruption Blocked . | . . . . Overload Shots . | . . . . Overflow Damage . | . . . . Projectiles . | . . . . Explosions . | . . . . Melee . | . . . . Knockbacks . | . . . . Impact . | . . . . Kinetic . | . . . . Secondary . | . . . . Self-Inflicted Damage . | . . . . Shots . | . . . . Rammed . | . . . . Targets Rammed . | . . . . Kicked . | . . . . Crushed . | . . . . Highest Temperature 20 | . . 3 20 Average Temperature 4 | . . 1 12 Received Heat Transfer 343 | . 12 171 160 Siege Activations . | . . . . Robots Corrupted . | . . . . Combat Hostiles . | . . . . Parts Fried . | . . . . Impact Corruptions . | . . . . Robots Melted . | . . . . Combat Hostiles . | . . . . Parts Melted . | . . . . Heat Transferred . | . . . . Parts Sabotaged . | . . . . Parts Stolen . | . . . . Parts Stripped . | . . . . Power Chain Reactions . | . . . . Alert | -11 -10 -10 -10 ------- Run | Yrd Mat Min Exi Peak Influence 157 | 60 109 157 . Initial 42 | . 39 42 . Average 65 | 30 70 77 . Maximum Alert Level . | . . . . Low Security (%) 100 | 100 100 100 . Level 1 . | . . . . Level 2 . | . . . . Level 3 . | . . . . Level 4 . | . . . . Level 5 . | . . . . High Security . | . . . . Max Security . | . . . . Squads Dispatched 1 | . 1 . . Investigation . | . . . . Extermination . | . . . . Reinforcement 1 | . 1 . . Assault . | . . . . Garrison . | . . . . Intercept . | . . . . Searches Triggered . | . . . . Construction Impeded . | . . . . Haulers Reinforced . | . . . . Active Scanning Responses . | . . . . Cargo Convoy Interrupts . | . . . . Stealth | -11 -10 -10 -10 --------- Run | Yrd Mat Min Exi Distress Signals 1 | . 1 . . Communications Jammed . | . . . . Distress Signals . | . . . . Times Spotted 20 | . 4 7 9 Peak Tracking Total 11 | . 2 3 11 Tactical Retreats . | . . . . Traps | -11 -10 -10 -10 ------- Run | Yrd Mat Min Exi Traps Triggered . | . . . . Indirectly . | . . . . Trap Hack Attempts . | . . . . Triggered . | . . . . Disarmed . | . . . . Reprogrammed . | . . . . Reused . | . . . . Traps Extracted . | . . . . Installed . | . . . . Triggered . | . . . . Machines | -11 -10 -10 -10 ---------- Run | Yrd Mat Min Exi Machines Disabled . | . . . . Max in Single Turn . | . . . . Machines Repaired . | . . . . Machines Dismantled . | . . . . Machines Sabotaged . | . . . . Overloaded Fab Kills . | . . . . Hacking | -11 -10 -10 -10 --------- Run | Yrd Mat Min Exi Machines Accessed 3 | . 3 . . Terminals 3 | . 3 . . Fabricators . | . . . . Repair Stations . | . . . . Recycling Units . | . . . . Scanalyzers . | . . . . Garrison Access . | . . . . Total Hacks 6 | . 6 . . Successful 4 | . 4 . . Failed 2 | . 2 . . Catastrophic 1 | . 1 . . Database Lockouts . | . . . . Manual . | . . . . Terminals 6 | . 6 . . Fabricators . | . . . . Repair Stations . | . . . . Recycling Units . | . . . . Scanalyzers . | . . . . Garrison Access . | . . . . Terminal Hacks 4 | . 4 . . Record 1 | . 1 . . Locate Traps 1 | . 1 . . Security Status 2 | . 2 . . Fabricator Hacks . | . . . . Repair Station Hacks . | . . . . Recycling Unit Hacks . | . . . . Scanalyzer . | . . . . Garrison Access Hacks . | . . . . Unauthorized Hacks . | . . . . Terminals . | . . . . Fabricators . | . . . . Repair Stations . | . . . . Recycling Units . | . . . . Scanalyzers . | . . . . Garrison Access . | . . . . Data Cores Recovered . | . . . . Used . | . . . . Hacking Detections 3 | . 3 . . Full Trace Events . | . . . . Feedback Events . | . . . . Feedback Blocked . | . . . . Robot Schematics Acquired . | . . . . Robots Built . | . . . . Authchips . | . . . . Time . | . . . . Total Robot Build Rating . | . . . . Part Schematics Acquired . | . . . . Parts Built . | . . . . Authchips . | . . . . Time . | . . . . Total Part Build Rating . | . . . . Parts Repaired . | . . . . Time . | . . . . Parts Recycled . | . . . . Recycled Matter . | . . . . Retrieved Matter . | . . . . Retrieved Components . | . . . . Parts Scanalyzed . | . . . . Part Schematics Acquired . | . . . . Parts Damaged . | . . . . Bothacking | -11 -10 -10 -10 ------------ Run | Yrd Mat Min Exi Used RIF Installer . | . . . . Robots Hacked . | . . . . Non-combat . | . . . . Combat . | . . . . Robot Hacks Applied . | . . . . Relay Couplers Released . | . . . . Fabnet Peak Effective % . | . . . . Robots Rewired . | . . . . Allies Hacked . | . . . . Hacks Repelled . | . . . . Allies | -11 -10 -10 -10 -------- Run | Yrd Mat Min Exi Total Allies . | . . . . Largest Group . | . . . . Highest-Rated Group . | . . . . Highest-Rated Ally . | . . . . Total Orders . | . . . . Ally Attacks . | . . . . Total Damage . | . . . . Kills . | . . . . Allies Corrupted . | . . . . Allies Melted . | . . . . Intel | -11 -10 -10 -10 ------- Run | Yrd Mat Min Exi Robot Analysis Total . | . . . . Derelict Logs Recovered 3 | . . 3 . Drone Launches . | . . . . Drone Recoveries . | . . . . Exploration | -11 -10 -10 -10 ------------- Run | Yrd Mat Min Exi Turns Passed 1153 | 238 253 599 63 Spaces Moved 893 | 122 158 557 56 Core 14 | 13 . . 1 Treads . | . . . . Legs . | . . . . Wheels 818 | 109 97 557 55 Hover 61 | . 61 . . Flight . | . . . . Fastest Speed 50 | 50 56 80 80 Average Speed 78 | 76 70 80 83 Slowest Speed 250 | 80 80 95 250 Overloaded Moves . | . . . . Propulsion Burnouts . | . . . . Robots Hopped . | . . . . Cave-ins Triggered . | . . . . Exploration Rate (%) 36 | 3 35 87 21 Regions Visited 3 Branch Regions 2 Pre-discovered Areas 2 | . . 2 . Known Exits Taken . | . . . . Unknown Exits Taken 3 | 1 1 1 . Scrap Searched 1 | . . 1 . Spaces Dug . | . . . . Terrain Destroyed . | . . . . Melee . | . . . . Projectile . | . . . . AOE . | . . . . Terrain Rammed . | . . . . Walls Destroyed . | . . . . Machines Disabled . | . . . . Actions | -11 -10 -10 -10 --------- Run | Yrd Mat Min Exi Total 1220 | 236 280 637 67 Wait 185 | 74 83 28 . Move 890 | 121 157 556 56 Hop . | . . . . Pick Up 30 | 16 6 8 . Fast Attach . | . . . . Attach 15 | 7 4 2 2 Detach . | . . . . Swap 8 | . 4 2 2 Drop 15 | 1 9 4 1 Fire 77 | 17 17 37 6 Melee . | . . . . Ram . | . . . . Kick . | . . . . Crush . | . . . . Escape Stasis . | . . . . Rewire . | . . . . Trap . | . . . . Miscellaneous . | . . . . Route ------- -11/Scrapyard -10/Materials -10/Mines (discovered 3 exits: [*Mat x2] / [*Exi]) -10/Exiles History --------- Turn | Location | Event 34 | -11/Scrapyard | Discovered new exit (range 16) 239 | -11/Scrapyard | Entered Materials 307 | -10/Materials | Build established: Mutant 483 | -10/Materials | Discovered new exit (range 12) 492 | -10/Materials | Entered Mines 520 | -10/Mines | Met a Derelict bent on vengeance 685 | -10/Mines | Found a damaged Exp. Sensor Array with a note attached 687 | -10/Mines | Found Prototype Device 688 | -10/Mines | Identified Exp. Sensor Array 710 | -10/Mines | Discovered new exit (range 4) 768 | -10/Mines | Deemed a non-threat by the Exiles lab entrance 768 | -10/Mines | Discovered new exit (range 5) 836 | -10/Mines | Learned Materials trap positions 845 | -10/Mines | Met a Derelict testing a Signal Generator 852 | -10/Mines | Found Signal Generator 947 | -10/Mines | Learned location of Mines (-9) 984 | -10/Mines | Discovered new exit (range 10) 1091 | -10/Mines | Entered Exiles 1114 | -10/Exiles | Met 8R-AWN 1127 | -10/Exiles | Met EX-HEX 1138 | -10/Exiles | Attacked by the Exiles 1147 | -10/Exiles | Core integrity fell below 50% 1152 | -10/Exiles | Core integrity fell below 20% 1154 | -10/Exiles | Destroyed by as-71546 with Assembled F-torch Last Messages --------------- some help with the project in the back. EXILES: Hostile robot within lab perimeter. Defensive protocols time, folks! Wheel destroyed. Assault Rifle destroyed. Assembled Analyzer disabled. Ion Engine destroyed. as-47358 destroyed. Penetrated by HV Slug. Critical hit (Destroy). Penetrated by HV Slug. J7-IZ0(z) destroyed. Lgt. Armor Plating destroyed. HV Slug penetrates Wall. Penetrated by HV Slug. as-78907 destroyed. Penetrated by HV Slug. Wheel destroyed. Penetrated by HV Slug. Lgt. Assault Rifle destroyed. Map ----- +----------------------------------------------------+ | ?????????????????????????????????????????????????? | | ?????????????????????????????????????????????????? | | ?????????????????????????????????????????????????? | | ?????????????????????????????????????????????????? | | ?????????????????????????????????????????????????? | | ?????????????????????????????????????????????????? | | ?????????????????????????????????????????????????? | | ?????????????????????????????????????????????????? | | ?????????????????????????????????????????????????? | | ?????????????????????????????????????????????????? | | ?????????????????????????????????????????????????? | | ??????????????????????"""????????????????????????? | | ??????????????????" ?"" ""?"#????????????????????? | | ???????????????? "" "? ????????????????????? | | ?????????????? " """#???????????????????? | | ?????????????? "a"#???????????#####???? | | ????????????? " "##?????????##" #???? | | ????????????? "###???????#" #???? | | ???????????? " "#??????##" ##??? | | ????????????? "#????### ###? | | ??????????????" ##???# ## | | ??????????????"" ##?## # | | ?????????????"""" ### | | ?????????????"" g ## | | ???????????#"""" / #### | | ???????????" %@ ""#?#"""""# | | ?????????? =% #"""##?####### | | ?????????? ######????????? | | ?????????? a ##?????????????? | | ?????????? " a ##??????????????? | | ???????????"" """ a % ""#???????????????? | | ????????????"" " " ""#" a a"##???????????????? | | ??????????????#""" """##"""""""##????????????????? | | ????????????????#""""??#########?????????????????? | | ?????????????????????????????????????????????????? | | ?????????????????????????????????????????????????? | | ?????????????????????????????????????????????????? | | ?????????????????????????????????????????????????? | | ?????????????????????????????????????????????????? | | ?????????????????????????????????????????????????? | | ?????????????????????????????????????????????????? | | ?????????????????????????????????????????????????? | | ?????????????????????????????????????????????????? | | ?????????????????????????????????????????????????? | | ?????????????????????????????????????????????????? | | ?????????????????????????????????????????????????? | | ?????????????????????????????????????????????????? | | ?????????????????????????????????????????????????? | | ?????????????????????????????????????????????????? | | ?????????????????????????????????????????????????? | +----------------------------------------------------+ Best States ------------- Heat Dissipation 25 Energy Generation 10 Energy Capacity 250 Matter Stores 300 Matter Capacity 300 Sight Range 16 Robot Scan Range 20 Terrain Scan Density 10 Evasion (%) 53 Item Schematics ----------------- None Robot Schematics ------------------ None Fabricated ------------ Nothing Alien Tech Used ----------------- None Achievements -------------- None Challenges ------------ None Game ------ Seed ReflectiveRemoteFlamer Manual? 0 Play Time 00:20:54 Cumulative 13.7 hours Start 2024.04.07 @ 05:11:18 End 2024.04.07 @ 14:57:54 Sessions 2 Manual Loads 0 Difficulty Rogue Special Mode None Game No. 17 Rogue 16 Adventurer 1 Explorer 0 Win Type - Total 0 Types 0/0/0/0/0/0/0/0/0 Lore% 14 Gallery% 22 Achievement% 19 Wizard Run 0 Options --------- Layout 1 ASCII 0 Keyboard 0 Movement Mouse Keybinds 0 Fullscreen 1 Font 24/Smallcaps Map View 50x40 Zoom Use 0% Tactical HUD 0 Map Filters NONE Filters NONE Steam 1 RUN: c93f2d68-9368-40c7-b857-4e792fec851b